[Event "Women"]
[Site "Tallinn, EE"]
[Date "2024.12.14"]
[Round "1.1"]
[White "Narva, Regina"]
[Black "Brokko, Margit"]
[Result "0-1"]
[Board "4"]
[TimeControl "40/5400+30"]
[WhiteFideId "4500237"]
[BlackFideId "4501098"]
[WhiteTitle "WFM"]
[BlackTitle "WFM"]
[WhiteElo "1969"]
[BlackElo "1958"]
[WhiteTeam "EST"]
[BlackTeam "EST"]
[WhiteClock "0:02:47"]
[BlackClock "0:30:35"]
[Variant "Standard"]

1. e4 {[%clk 1:30:05]}  e5 {[%clk 1:30:36]} 2. Nc3 {[%clk 1:29:22]}  Nf6 {[%clk 1:30:23]} 3. g3 {[%clk 1:28:28]}  Bc5 {[%clk 1:30:03]} 4. Bg2 {[%clk 1:27:32]}  d6 {[%clk 1:29:32]} 5. Na4 {[%clk 1:24:42]}  Bb6 {[%clk 1:27:32]} 6. Nxb6 {[%clk 1:21:41]}  axb6 {[%clk 1:27:56]} 7. h3 {[%clk 1:19:41]}  Be6 {[%clk 1:26:42]} 8. b3 {[%clk 1:05:46]}  Nc6 {[%clk 1:25:46]} 9. Bb2 {[%clk 0:54:41]}  O-O {[%clk 1:24:40]} 10. f4 {[%clk 0:50:17]}  exf4 {[%clk 1:21:53]} 11. gxf4 {[%clk 0:49:09]}  Re8 {[%clk 1:20:31]} 12. d3 {[%clk 0:47:18]}  Bf5 {[%clk 1:17:01]} 13. Ne2 {[%clk 0:25:59]}  Bg6 {[%clk 1:14:40]} 14. Ng3 {[%clk 0:22:05]}  Nh5 {[%clk 1:10:02]} 15. Qg4 {[%clk 0:18:32]}  Nxg3 {[%clk 1:04:01]} 16. Qxg3 {[%clk 0:18:54]}  f5 {[%clk 1:04:05]} 17. O-O {[%clk 0:18:47]}  Qd7 {[%clk 1:03:22]} 18. a3 {[%clk 0:14:56]}  Rf8 {[%clk 0:58:30]} 19. Rae1 {[%clk 0:14:02]}  Rae8 {[%clk 0:57:42]} 20. h4 {[%clk 0:13:24]}  Re7 {[%clk 0:51:13]} 21. Bh3 {[%clk 0:12:16]}  Qe8 {[%clk 0:48:22]} 22. exf5 {[%clk 0:09:43]}  Bxf5 {[%clk 0:44:09]} 23. Bxf5 {[%clk 0:07:04]}  Rxf5 {[%clk 0:44:05]} 24. Rxe7 {[%clk 0:06:48]}  Qxe7 {[%clk 0:43:45]} 25. Re1 {[%clk 0:07:13]}  Qd7 {[%clk 0:42:54]} 26. Re8+ {[%clk 0:06:41]}  Rf8 {[%clk 0:43:03]} 27. Re2 {[%clk 0:06:10]}  Qf7 {[%clk 0:41:22]} 28. Rg2 {[%clk 0:03:51]}  g6 {[%clk 0:41:12]} 29. h5 {[%clk 0:03:43]}  Ne7 {[%clk 0:39:48]} 30. hxg6 {[%clk 0:03:38]}  Nxg6 {[%clk 0:39:48]} 31. Rf2 {[%clk 0:03:32]}  Qf5 {[%clk 0:39:29]} 32. Qg5 {[%clk 0:03:30]}  Qxg5+ {[%clk 0:32:24]} 33. fxg5 {[%clk 0:03:55]}  Nf4 {[%clk 0:32:25]} 34. Kh2 {[%clk 0:03:53]}  Ne6 {[%clk 0:31:28]} 35. Rg2 {[%clk 0:03:53]}  Rf5 {[%clk 0:31:10]} 36. g6 {[%clk 0:03:28]}  h6 {[%clk 0:30:58]} 37. g7 {[%clk 0:01:53]}  Rh5+ {[%clk 0:30:16]} 38. Kg1 {[%clk 0:02:18]}  Rg5 {[%clk 0:30:16]} 39. Rxg5 {[%clk 0:01:33]}  hxg5 {[%clk 0:30:32]} 40. Bf6 {[%clk 0:16:57]}  g4 {[%clk 0:42:39]} 41. Kf2 {[%clk 0:16:13]}  Nxg7 {[%clk 0:39:17]} 42. Bxg7 {[%clk 0:03:01]}  Kxg7 {[%clk 0:39:38]} 43. Kg3 {[%clk 0:03:29]}  Kf6 {[%clk 0:39:54]} 44. Kxg4 {[%clk 0:03:55]}  Ke5 {[%clk 0:40:10]} 45. c3 {[%clk 0:04:22]}  b5 {[%clk 0:40:06]} 46. Kf3 {[%clk 0:04:20]}  c5 {[%clk 0:38:55]} 47. Ke3 {[%clk 0:03:52]}  b6 {[%clk 0:36:22]} 48. Kf3 {[%clk 0:03:02]}  b4 {[%clk 0:34:14]} 49. axb4 {[%clk 0:01:03]}  cxb4 {[%clk 0:34:26]} 50. cxb4 {[%clk 0:00:43]}  Kd4 {[%clk 0:34:44]} 51. Kf4 {[%clk 0:00:59]}  Kxd3 {[%clk 0:33:58]} 52. Kf5 {[%clk 0:00:52]}  d5 {[%clk 0:32:16]} 53. Ke5 {[%clk 0:01:10]}  d4 {[%clk 0:32:35]} 54. b5 {[%clk 0:01:20]}  Kc3 {[%clk 0:32:40]} 55. Kd6 {[%clk 0:01:46]}  d3 {[%clk 0:32:57]} 56. Kc6 {[%clk 0:02:12]}  d2 {[%clk 0:33:16]} 57. Kxb6 {[%clk 0:02:39]}  d1=Q {[%clk 0:33:07]} 58. Kc7 {[%clk 0:02:34]}  Kb4 {[%clk 0:32:49]} 59. b6 {[%clk 0:03:00]}  Qc1+ {[%clk 0:32:25]} 60. Kb8 {[%clk 0:03:19]}  Ka5 {[%clk 0:30:54]} 61. b7 {[%clk 0:03:00]}  Kb6 {[%clk 0:30:18]} 62. Ka8 {[%clk 0:02:47]}  Qa1+ {[%clk 0:30:35]} 0-1

[Event "Women"]
[Site "Tallinn, EE"]
[Date "2024.12.15"]
[Round "1.2"]
[White "Brokko, Margit"]
[Black "Narva, Regina"]
[Result "1-0"]
[Board "4"]
[TimeControl "40/5400+30"]
[WhiteFideId "4501098"]
[BlackFideId "4500237"]
[WhiteTitle "WFM"]
[BlackTitle "WFM"]
[WhiteElo "1958"]
[BlackElo "1969"]
[WhiteTeam "EST"]
[BlackTeam "EST"]
[WhiteClock "0:26:02"]
[BlackClock "0:10:11"]
[Variant "Standard"]

1. e4 {[%clk 1:30:53]}  c5 {[%clk 1:30:19]} 2. Nc3 {[%clk 1:31:10]}  g6 {[%clk 1:29:29]} 3. g3 {[%clk 1:31:33]}  Bg7 {[%clk 1:28:38]} 4. Bg2 {[%clk 1:31:53]}  Nc6 {[%clk 1:28:18]} 5. d3 {[%clk 1:32:14]}  d6 {[%clk 1:27:42]} 6. Be3 {[%clk 1:32:28]}  e6 {[%clk 1:26:27]} 7. Qd2 {[%clk 1:32:20]}  Rb8 {[%clk 1:24:25]} 8. f4 {[%clk 1:25:36]}  Nge7 {[%clk 1:13:55]} 9. Nge2 {[%clk 1:19:24]}  b5 {[%clk 1:09:48]} 10. O-O {[%clk 1:18:57]}  b4 {[%clk 1:05:17]} 11. Nd1 {[%clk 1:19:18]}  O-O {[%clk 1:04:37]} 12. d4 {[%clk 1:14:14]}  Qb6 {[%clk 0:50:17]} 13. dxc5 {[%clk 1:03:09]}  dxc5 {[%clk 0:50:38]} 14. Qd6 {[%clk 0:58:34]}  Nd4 {[%clk 0:09:18]} 15. Qxe7 {[%clk 0:54:31]}  Nxe2+ {[%clk 0:09:38]} 16. Kh1 {[%clk 0:43:17]}  Nd4 {[%clk 0:09:47]} 17. c3 {[%clk 0:41:34]}  Rb7 {[%clk 0:09:22]} 18. Qh4 {[%clk 0:37:36]}  Nc2 {[%clk 0:09:03]} 19. Rc1 {[%clk 0:37:50]}  Nxe3 {[%clk 0:09:21]} 20. Nxe3 {[%clk 0:38:06]}  bxc3 {[%clk 0:09:41]} 21. bxc3 {[%clk 0:37:57]}  Qa5 {[%clk 0:10:05]} 22. e5 {[%clk 0:35:53]}  Rb2 {[%clk 0:10:28]} 23. Nc4 {[%clk 0:35:37]}  Qxa2 {[%clk 0:10:29]} 24. Nxb2 {[%clk 0:35:54]}  Qxb2 {[%clk 0:10:57]} 25. Qe7 {[%clk 0:34:40]}  Ba6 {[%clk 0:10:55]} 26. Rfd1 {[%clk 0:33:25]}  Qf2 {[%clk 0:09:49]} 27. Qxa7 {[%clk 0:31:58]}  Be2 {[%clk 0:10:12]} 28. Qa2 {[%clk 0:29:23]}  Qe3 {[%clk 0:09:18]} 29. Re1 {[%clk 0:29:26]}  Bc4 {[%clk 0:09:44]} 30. Qxc4 {[%clk 0:29:19]}  Qd2 {[%clk 0:10:11]} 31. Qxc5 {[%clk 0:26:02]} 1-0

[Event "Women"]
[Site "Tallinn, EE"]
[Date "2024.12.16"]
[Round "2.1"]
[White "Olde, Margareth"]
[Black "Brokko, Margit"]
[Result "1-0"]
[Board "1"]
[TimeControl "40/5400+30"]
[WhiteFideId "4503082"]
[BlackFideId "4501098"]
[WhiteTitle "WIM"]
[BlackTitle "WFM"]
[WhiteElo "2147"]
[BlackElo "1958"]
[WhiteTeam "EST"]
[BlackTeam "EST"]
[WhiteClock "1:03:51"]
[BlackClock "1:08:23"]
[Variant "Standard"]

1. e4 {[%clk 1:30:45]}  d6 {[%clk 1:28:27]} 2. d4 {[%clk 1:30:58]}  Nf6 {[%clk 1:28:50]} 3. Nc3 {[%clk 1:30:59]}  g6 {[%clk 1:23:27]} 4. Be3 {[%clk 1:31:10]}  Bg7 {[%clk 1:23:49]} 5. h3 {[%clk 1:31:28]}  O-O {[%clk 1:24:05]} 6. Qd2 {[%clk 1:31:35]}  Re8 {[%clk 1:24:28]} 7. Nf3 {[%clk 1:29:21]}  Nbd7 {[%clk 1:24:04]} 8. e5 {[%clk 1:22:34]}  Nh5 {[%clk 1:19:48]} 9. g4 {[%clk 1:19:51]}  dxe5 {[%clk 1:16:59]} 10. dxe5 {[%clk 1:13:16]}  Nxe5 {[%clk 1:12:01]} 11. Nxe5 {[%clk 1:13:16]}  Bxe5 {[%clk 1:11:31]} 12. gxh5 {[%clk 1:11:58]}  gxh5 {[%clk 1:10:23]} 13. O-O-O {[%clk 1:08:44]}  Qxd2+ {[%clk 1:07:40]} 14. Rxd2 {[%clk 1:08:12]}  Bf5 {[%clk 1:07:54]} 15. Bd3 {[%clk 1:05:25]}  Bg6 {[%clk 1:07:56]} 16. f4 {[%clk 1:05:12]}  Bxc3 {[%clk 1:07:34]} 17. bxc3 {[%clk 1:05:33]}  e6 {[%clk 1:07:54]} 18. Bd4 {[%clk 1:05:22]}  b6 {[%clk 1:07:44]} 19. Bf6 {[%clk 1:04:36]}  a5 {[%clk 1:07:46]} 20. Bb5 {[%clk 1:03:58]}  Rec8 {[%clk 1:07:26]} 21. Bc6 {[%clk 1:04:12]}  Rab8 {[%clk 1:07:33]} 22. Rhd1 {[%clk 1:04:03]}  Bf5 {[%clk 1:07:41]} 23. h4 {[%clk 1:03:58]}  h6 {[%clk 1:07:39]} 24. Rd8+ {[%clk 1:03:38]}  Kh7 {[%clk 1:08:04]} 25. Rxc8 {[%clk 1:03:37]}  Rxc8 {[%clk 1:08:23]} 26. Rd8 {[%clk 1:03:51]} 1-0

[Event "Women"]
[Site "Tallinn, EE"]
[Date "2024.12.16"]
[Round "2.1"]
[White "Olde, Grete"]
[Black "Tsiganova, Monika"]
[Result "1-0"]
[Board "2"]
[TimeControl "40/5400+30"]
[WhiteFideId "4503104"]
[BlackFideId "4500199"]
[WhiteTitle "WCM"]
[BlackTitle "WIM"]
[WhiteElo "1942"]
[BlackElo "2077"]
[WhiteTeam "EST"]
[BlackTeam "EST"]
[WhiteClock "0:04:48"]
[BlackClock "0:13:49"]
[Variant "Standard"]

1. e4 {[%clk 1:30:57]}  c6 {[%clk 1:30:23]} 2. d4 {[%clk 1:31:12]}  d5 {[%clk 1:30:44]} 3. e5 {[%clk 1:31:32]}  Qb6 {[%clk 1:30:37]} 4. Nf3 {[%clk 1:23:10]}  Bg4 {[%clk 1:30:23]} 5. Be2 {[%clk 1:22:15]}  e6 {[%clk 1:30:26]} 6. O-O {[%clk 1:20:45]}  Nd7 {[%clk 1:30:41]} 7. Nbd2 {[%clk 1:16:33]}  c5 {[%clk 1:29:11]} 8. c4 {[%clk 1:08:06]}  Ne7 {[%clk 1:10:33]} 9. Nb3 {[%clk 0:53:33]}  cxd4 {[%clk 1:06:40]} 10. Nbxd4 {[%clk 0:50:51]}  dxc4 {[%clk 0:55:24]} 11. Qa4 {[%clk 0:40:10]}  Nc6 {[%clk 0:51:25]} 12. Be3 {[%clk 0:37:01]}  Bc5 {[%clk 0:49:11]} 13. Nxc6 {[%clk 0:27:53]}  Bxe3 {[%clk 0:32:02]} 14. Na5 {[%clk 0:25:34]}  Bc5 {[%clk 0:32:12]} 15. Nxc4 {[%clk 0:22:10]}  Qb4 {[%clk 0:26:04]} 16. Qc2 {[%clk 0:18:44]}  Bf5 {[%clk 0:25:25]} 17. Qd1 {[%clk 0:17:45]}  b5 {[%clk 0:20:39]} 18. a3 {[%clk 0:15:57]}  Qa4 {[%clk 0:20:59]} 19. Nd6+ {[%clk 0:15:51]}  Ke7 {[%clk 0:19:42]} 20. Bxb5 {[%clk 0:12:50]}  Qxd1 {[%clk 0:19:14]} 21. Nxf5+ {[%clk 0:12:49]}  exf5 {[%clk 0:19:23]} 22. Rfxd1 {[%clk 0:12:55]}  Rhd8 {[%clk 0:19:14]} 23. b4 {[%clk 0:09:12]}  Bb6 {[%clk 0:19:22]} 24. a4 {[%clk 0:09:04]}  Nf8 {[%clk 0:17:27]} 25. a5 {[%clk 0:08:54]}  Bc7 {[%clk 0:17:42]} 26. Nd4 {[%clk 0:08:51]}  Bxe5 {[%clk 0:17:02]} 27. Nc6+ {[%clk 0:08:32]}  Kf6 {[%clk 0:17:23]} 28. Rxd8 {[%clk 0:05:32]}  Rxd8 {[%clk 0:17:42]} 29. Nxd8 {[%clk 0:05:55]}  Bxa1 {[%clk 0:17:57]} 30. Nc6 {[%clk 0:06:09]}  Bc3 {[%clk 0:18:21]} 31. a6 {[%clk 0:06:05]}  Ne6 {[%clk 0:18:24]} 32. Bc4 {[%clk 0:05:16]}  Nd4 {[%clk 0:14:15]} 33. Nxa7 {[%clk 0:05:09]}  Bxb4 {[%clk 0:14:35]} 34. Nc8 {[%clk 0:05:21]}  Nc6 {[%clk 0:13:49]} 35. Bb5 {[%clk 0:04:48]} 1-0

[Event "Women"]
[Site "Tallinn, EE"]
[Date "2024.12.18"]
[Round "3.1"]
[White "Olde, Grete"]
[Black "Olde, Margareth"]
[Result "1/2-1/2"]
[Board "1"]
[TimeControl "40/5400+30"]
[WhiteFideId "4503104"]
[BlackFideId "4503082"]
[WhiteTitle "WCM"]
[BlackTitle "WIM"]
[WhiteElo "1942"]
[BlackElo "2147"]
[WhiteTeam "EST"]
[BlackTeam "EST"]
[WhiteClock "0:05:12"]
[BlackClock "0:01:18"]
[Variant "Standard"]

1. e4 {[%clk 1:30:56]}  c5 {[%clk 1:30:48]} 2. Nf3 {[%clk 1:30:57]}  Nc6 {[%clk 1:31:10]} 3. Bb5 {[%clk 1:31:07]}  e6 {[%clk 1:31:07]} 4. Bxc6 {[%clk 1:31:12]}  bxc6 {[%clk 1:31:25]} 5. b3 {[%clk 1:31:24]}  Ne7 {[%clk 1:26:53]} 6. Nc3 {[%clk 1:27:31]}  Ng6 {[%clk 1:26:11]} 7. h4 {[%clk 1:25:56]}  h5 {[%clk 1:21:37]} 8. e5 {[%clk 1:24:23]}  f6 {[%clk 1:00:57]} 9. Ne4 {[%clk 1:13:12]}  fxe5 {[%clk 0:52:41]} 10. Nfg5 {[%clk 1:06:49]}  d5 {[%clk 0:50:36]} 11. Qf3 {[%clk 0:57:57]}  Qc7 {[%clk 0:48:17]} 12. Ng3 {[%clk 0:52:47]}  e4 {[%clk 0:47:38]} 13. Qd1 {[%clk 0:45:05]}  Nf4 {[%clk 0:45:40]} 14. O-O {[%clk 0:43:18]}  Be7 {[%clk 0:42:49]} 15. d3 {[%clk 0:40:44]}  Bxg5 {[%clk 0:37:30]} 16. hxg5 {[%clk 0:40:54]}  exd3 {[%clk 0:35:54]} 17. Qf3 {[%clk 0:36:43]}  Ng6 {[%clk 0:22:25]} 18. Qxd3 {[%clk 0:31:59]}  Qf7 {[%clk 0:22:47]} 19. Ba3 {[%clk 0:28:40]}  h4 {[%clk 0:19:17]} 20. Ne2 {[%clk 0:27:45]}  h3 {[%clk 0:18:08]} 21. g3 {[%clk 0:23:32]}  Ne5 {[%clk 0:13:28]} 22. Qe3 {[%clk 0:22:53]}  Qf3 {[%clk 0:13:27]} 23. Qxf3 {[%clk 0:22:53]}  Nxf3+ {[%clk 0:13:55]} 24. Kh1 {[%clk 0:23:13]}  e5 {[%clk 0:06:55]} 25. Bxc5 {[%clk 0:21:15]}  Bf5 {[%clk 0:03:50]} 26. Ng1 {[%clk 0:19:11]}  Nxg5 {[%clk 0:04:10]} 27. Kh2 {[%clk 0:17:14]}  Ne4 {[%clk 0:02:32]} 28. Ba3 {[%clk 0:16:11]}  Kd7 {[%clk 0:02:22]} 29. Nf3 {[%clk 0:14:02]}  Rae8 {[%clk 0:02:10]} 30. Bb2 {[%clk 0:13:33]}  Nf6 {[%clk 0:02:11]} 31. Nh4 {[%clk 0:13:17]}  Ng4+ {[%clk 0:02:12]} 32. Kh1 {[%clk 0:12:53]}  Bxc2 {[%clk 0:02:16]} 33. f3 {[%clk 0:12:08]}  Nf6 {[%clk 0:02:32]} 34. Bc1 {[%clk 0:11:52]}  e4 {[%clk 0:00:59]} 35. Ng6 {[%clk 0:11:18]}  Rhg8 {[%clk 0:01:22]} 36. Bf4 {[%clk 0:10:09]}  Nh5 {[%clk 0:00:59]} 37. Ne5+ {[%clk 0:08:39]}  Ke6 {[%clk 0:00:40]} 38. Rfc1 {[%clk 0:04:31]}  g5 {[%clk 0:00:57]} 39. Rxc2 {[%clk 0:04:23]}  gxf4 {[%clk 0:01:23]} 40. gxf4 {[%clk 0:19:38]}  Nxf4 {[%clk 0:16:12]} 41. Nxc6 {[%clk 0:18:50]}  Rg2 {[%clk 0:12:14]} 42. fxe4 {[%clk 0:11:31]}  Rxc2 {[%clk 0:08:18]} 43. Nd4+ {[%clk 0:11:57]}  Ke5 {[%clk 0:08:40]} 44. Nxc2 {[%clk 0:12:24]}  dxe4 {[%clk 0:09:03]} 45. Rf1 {[%clk 0:10:37]}  Nd5 {[%clk 0:05:22]} 46. Kh2 {[%clk 0:08:54]}  Rc8 {[%clk 0:04:13]} 47. Na3 {[%clk 0:08:47]}  e3 {[%clk 0:03:00]} 48. Nc4+ {[%clk 0:07:18]}  Kd4 {[%clk 0:02:42]} 49. Rd1+ {[%clk 0:07:21]}  Kc5 {[%clk 0:02:19]} 50. Nxe3 {[%clk 0:07:19]}  Nc3 {[%clk 0:01:24]} 51. Rc1 {[%clk 0:07:06]}  Kd4 {[%clk 0:01:37]} 52. Nf5+ {[%clk 0:05:15]}  Kd3 {[%clk 0:01:53]} 53. Kxh3 {[%clk 0:05:12]}  Rf8 {[%clk 0:00:47]} 54. Kg4 {[%clk 0:05:02]}  Rg8+ {[%clk 0:00:51]} 55. Kf3 {[%clk 0:04:34]}  Rf8 {[%clk 0:01:12]} 56. Kg4 {[%clk 0:04:53]}  Rg8+ {[%clk 0:01:16]} 57. Kf3 {[%clk 0:05:12]}  Rf8 {[%clk 0:01:18]} 1/2-1/2

[Event "Women"]
[Site "Tallinn, EE"]
[Date "2024.12.19"]
[Round "3.2"]
[White "Olde, Margareth"]
[Black "Olde, Grete"]
[Result "1/2-1/2"]
[Board "1"]
[TimeControl "40/5400+30"]
[WhiteFideId "4503082"]
[BlackFideId "4503104"]
[WhiteTitle "WIM"]
[BlackTitle "WCM"]
[WhiteElo "2147"]
[BlackElo "1942"]
[WhiteTeam "EST"]
[BlackTeam "EST"]
[WhiteClock "0:12:56"]
[BlackClock "0:13:53"]
[Variant "Standard"]

1. d4 {[%clk 1:28:33]}  Nf6 {[%clk 1:30:28]} 2. c4 {[%clk 1:28:33]}  e6 {[%clk 1:30:42]} 3. Nf3 {[%clk 1:28:54]}  d5 {[%clk 1:30:59]} 4. Nc3 {[%clk 1:29:10]}  Be7 {[%clk 1:30:47]} 5. Bf4 {[%clk 1:28:10]}  O-O {[%clk 1:30:26]} 6. e3 {[%clk 1:28:34]}  b6 {[%clk 1:29:05]} 7. Bd3 {[%clk 1:28:52]}  Bb7 {[%clk 1:28:47]} 8. cxd5 {[%clk 1:28:54]}  exd5 {[%clk 1:28:04]} 9. Ne5 {[%clk 1:27:51]}  c5 {[%clk 1:22:52]} 10. Qf3 {[%clk 1:27:03]}  Nc6 {[%clk 1:09:57]} 11. O-O {[%clk 1:20:31]}  h6 {[%clk 0:52:12]} 12. Rac1 {[%clk 1:14:18]}  Bd6 {[%clk 0:46:41]} 13. Nb5 {[%clk 1:02:58]}  Bb8 {[%clk 0:38:51]} 14. Rfd1 {[%clk 0:53:04]}  Qe7 {[%clk 0:32:23]} 15. Nxc6 {[%clk 0:45:01]}  Bxc6 {[%clk 0:32:44]} 16. Nc3 {[%clk 0:39:28]}  Bxf4 {[%clk 0:30:02]} 17. Qxf4 {[%clk 0:38:50]}  c4 {[%clk 0:29:41]} 18. Bb1 {[%clk 0:36:00]}  b5 {[%clk 0:27:35]} 19. e4 {[%clk 0:30:32]}  dxe4 {[%clk 0:19:47]} 20. d5 {[%clk 0:30:38]}  b4 {[%clk 0:18:38]} 21. dxc6 {[%clk 0:20:15]}  bxc3 {[%clk 0:18:57]} 22. bxc3 {[%clk 0:20:16]}  Rac8 {[%clk 0:17:34]} 23. Qd6 {[%clk 0:11:44]}  Qe8 {[%clk 0:16:19]} 24. Qc5 {[%clk 0:08:54]}  Rxc6 {[%clk 0:14:10]} 25. Qxa7 {[%clk 0:09:17]}  Qe6 {[%clk 0:12:06]} 26. Qe3 {[%clk 0:07:07]}  Re8 {[%clk 0:11:55]} 27. Rd4 {[%clk 0:07:22]}  Rd6 {[%clk 0:08:25]} 28. Re1 {[%clk 0:04:36]}  Rxd4 {[%clk 0:06:51]} 29. Qxd4 {[%clk 0:04:58]}  Qc6 {[%clk 0:06:34]} 30. h3 {[%clk 0:04:41]}  Re6 {[%clk 0:04:39]} 31. Bc2 {[%clk 0:04:34]}  Rd6 {[%clk 0:04:14]} 32. Bxe4 {[%clk 0:03:31]}  Qa6 {[%clk 0:02:34]} 33. Qe5 {[%clk 0:03:07]}  Re6 {[%clk 0:01:11]} 34. Qb8+ {[%clk 0:00:48]}  Re8 {[%clk 0:01:21]} 35. Qb1 {[%clk 0:00:36]}  Nxe4 {[%clk 0:01:32]} 36. Rxe4 {[%clk 0:01:00]}  Rxe4 {[%clk 0:01:51]} 37. Qxe4 {[%clk 0:01:29]}  Qxa2 {[%clk 0:02:12]} 38. Kh2 {[%clk 0:01:37]}  Qb3 {[%clk 0:01:25]} 39. Qe5 {[%clk 0:01:51]}  Qb7 {[%clk 0:01:11]} 40. f4 {[%clk 0:16:28]}  Qc6 {[%clk 0:15:42]} 41. Qd4 {[%clk 0:15:42]}  Qe6 {[%clk 0:13:53]} 42. Qd8+ {[%clk 0:12:56]} 1/2-1/2

[Event "Women"]
[Site "Tallinn, EE"]
[Date "2024.12.19"]
[Round "3.3"]
[White "Olde, Margareth"]
[Black "Olde, Grete"]
[Result "1/2-1/2"]
[Board "1"]
[TimeControl "900+3"]
[WhiteFideId "4503082"]
[BlackFideId "4503104"]
[WhiteTitle "WIM"]
[BlackTitle "WCM"]
[WhiteElo "2087"]
[BlackElo "2024"]
[WhiteTeam "EST"]
[BlackTeam "EST"]
[WhiteClock "0:00:05"]
[BlackClock "0:01:24"]
[Variant "Standard"]

1. d4 {[%clk 0:15:05]}  d5 {[%clk 0:15:05]} 2. Nf3 {[%clk 0:15:07]}  Nf6 {[%clk 0:15:07]} 3. c4 {[%clk 0:15:09]}  e6 {[%clk 0:15:09]} 4. Nc3 {[%clk 0:15:11]}  Be7 {[%clk 0:15:11]} 5. Bf4 {[%clk 0:15:12]}  O-O {[%clk 0:15:12]} 6. e3 {[%clk 0:15:14]}  Nbd7 {[%clk 0:15:09]} 7. c5 {[%clk 0:15:16]}  Nh5 {[%clk 0:14:57]} 8. Bg3 {[%clk 0:12:25]}  c6 {[%clk 0:14:31]} 9. Bd3 {[%clk 0:12:22]}  g6 {[%clk 0:14:10]} 10. b4 {[%clk 0:11:00]}  a5 {[%clk 0:13:36]} 11. a3 {[%clk 0:10:57]}  b6 {[%clk 0:13:03]} 12. Ne5 {[%clk 0:08:30]}  Nxe5 {[%clk 0:10:26]} 13. Bxe5 {[%clk 0:08:30]}  f6 {[%clk 0:09:45]} 14. Bg3 {[%clk 0:08:33]}  Ba6 {[%clk 0:09:05]} 15. O-O {[%clk 0:06:45]}  Nxg3 {[%clk 0:08:07]} 16. hxg3 {[%clk 0:06:33]}  e5 {[%clk 0:07:21]} 17. dxe5 {[%clk 0:03:26]}  Bxd3 {[%clk 0:06:25]} 18. Qxd3 {[%clk 0:03:22]}  fxe5 {[%clk 0:06:26]} 19. cxb6 {[%clk 0:02:55]}  axb4 {[%clk 0:05:44]} 20. axb4 {[%clk 0:02:57]}  Qxb6 {[%clk 0:05:35]} 21. b5 {[%clk 0:02:40]}  Rxa1 {[%clk 0:04:43]} 22. Rxa1 {[%clk 0:02:43]}  d4 {[%clk 0:04:39]} 23. exd4 {[%clk 0:02:11]}  Qxd4 {[%clk 0:04:03]} 24. Qxd4 {[%clk 0:01:48]}  exd4 {[%clk 0:04:05]} 25. Ne4 {[%clk 0:01:27]}  cxb5 {[%clk 0:04:00]} 26. Ra7 {[%clk 0:01:30]}  Re8 {[%clk 0:03:31]} 27. Rd7 {[%clk 0:01:15]}  b4 {[%clk 0:03:10]} 28. Rxd4 {[%clk 0:01:09]}  b3 {[%clk 0:03:08]} 29. Rd7 {[%clk 0:00:27]}  Bd8 {[%clk 0:02:09]} 30. f3 {[%clk 0:00:06]}  Bb6+ {[%clk 0:02:03]} 31. Kh2 {[%clk 0:00:04]}  Rb8 {[%clk 0:01:34]} 32. Nf6+ {[%clk 0:00:06]}  Kf8 {[%clk 0:01:33]} 33. Nxh7+ {[%clk 0:00:08]}  Kg8 {[%clk 0:01:33]} 34. Nf6+ {[%clk 0:00:10]}  Kf8 {[%clk 0:01:18]} 35. Nh7+ {[%clk 0:00:05]}  Kg8 {[%clk 0:01:20]} 36. Nf6+ {[%clk 0:00:06]}  Kf8 {[%clk 0:01:22]} 37. Nh7+ {[%clk 0:00:05]}  Kg8 {[%clk 0:01:24]} 1/2-1/2

[Event "Women"]
[Site "Tallinn, EE"]
[Date "2024.12.19"]
[Round "3.3"]
[White "Tsiganova, Monika"]
[Black "Brokko, Margit"]
[Result "1-0"]
[Board "2"]
[TimeControl "900+3"]
[WhiteFideId "4500199"]
[BlackFideId "4501098"]
[WhiteTitle "WIM"]
[BlackTitle "WFM"]
[WhiteElo "1925"]
[BlackElo "1960"]
[WhiteTeam "EST"]
[BlackTeam "EST"]
[WhiteClock "0:08:53"]
[BlackClock "0:06:40"]
[Variant "Standard"]

1. d4 {[%clk 0:15:03]}  Nf6 {[%clk 0:15:04]} 2. c4 {[%clk 0:15:04]}  c5 {[%clk 0:15:05]} 3. e3 {[%clk 0:15:04]}  g6 {[%clk 0:14:57]} 4. Nf3 {[%clk 0:15:05]}  Bg7 {[%clk 0:14:56]} 5. Nc3 {[%clk 0:15:06]}  O-O {[%clk 0:14:43]} 6. Be2 {[%clk 0:15:05]}  d6 {[%clk 0:14:30]} 7. O-O {[%clk 0:15:01]}  Bf5 {[%clk 0:13:53]} 8. h3 {[%clk 0:14:58]}  Nc6 {[%clk 0:13:32]} 9. b3 {[%clk 0:14:34]}  a6 {[%clk 0:12:48]} 10. Bb2 {[%clk 0:14:34]}  Rb8 {[%clk 0:12:37]} 11. Nh4 {[%clk 0:13:27]}  Bd7 {[%clk 0:12:01]} 12. d5 {[%clk 0:13:11]}  Na7 {[%clk 0:11:54]} 13. a4 {[%clk 0:12:09]}  b5 {[%clk 0:11:49]} 14. axb5 {[%clk 0:12:07]}  Qc7 {[%clk 0:11:34]} 15. Rxa6 {[%clk 0:12:06]}  Nc8 {[%clk 0:10:54]} 16. Qa1 {[%clk 0:11:31]}  e6 {[%clk 0:10:26]} 17. dxe6 {[%clk 0:10:38]}  fxe6 {[%clk 0:10:16]} 18. Nf3 {[%clk 0:10:29]}  Bh6 {[%clk 0:09:07]} 19. Rd1 {[%clk 0:10:18]}  Nb6 {[%clk 0:08:19]} 20. Na4 {[%clk 0:10:13]}  Ne4 {[%clk 0:07:59]} 21. Nxb6 {[%clk 0:09:22]}  Rxb6 {[%clk 0:07:58]} 22. Qa5 {[%clk 0:09:14]}  Rfb8 {[%clk 0:07:48]} 23. Rxb6 {[%clk 0:09:11]}  Rxb6 {[%clk 0:07:27]} 24. Qa8+ {[%clk 0:09:10]}  Rb8 {[%clk 0:06:53]} 25. Qxe4 {[%clk 0:09:09]}  Qa7 {[%clk 0:06:40]} 26. Rxd6 {[%clk 0:08:53]} 1-0